bitfinex-derivatives/quotes_ETHF0:USTF0_20250104
["timestamp","ask_amount","ask_price","bid_price","bid_amount"]
[1736005596423,3.61822,3611.6,3610.8,0.27698]
[1736005596619,3.3413,3611.6,3610.8,3.05698]
[1736005596823,3.61822,3611.6,3610.8,2.78]
[1736005597031,3.2078,3611.5,3610.8,2.78]
[1736005597234,3.2078,3611.5,3610.8,3.05698]
[1736005597435,1.233,3611.6,3610.8,2.78]
[1736005597626,1.50991,3611.8,3611.0,3.2078]
[1736005597829,1.50991,3611.8,3611.0,6.8478]
[1736005598935,1.233,3611.8,3611.0,6.8478]
[1736005599161,0.27694,3611.4,3611.0,3.64]
[1736005599331,3.48473,3611.5,3611.0,3.64]
[1736005599534,3.48476,3611.1,3611.0,3.64]
[1736005600128,3.2078,3611.1,3611.0,3.64]
[1736005600330,0.27694,3611.4,3611.0,3.64]
[1736005600535,3.2078,3611.6,3611.0,3.64]
[1736005600730,0.27693,3611.5,3611.0,3.64]
[1736005601032,3.2078,3611.6,3611.0,3.64]
[1736005601033,4.4408,3611.6,3611.0,3.64]
[1736005601234,4.71772,3611.6,3611.0,3.64]
[1736005601538,0.27693,3611.5,3611.0,3.64]
[1736005602038,4.71772,3611.6,3611.0,3.64]
[1736005602251,4.4408,3611.6,3611.0,3.64]
[1736005602737,4.71772,3611.6,3611.0,3.64]
[1736005602937,0.27693,3611.5,3611.0,3.64]
[1736005603236,3.2078,3611.6,3611.0,3.64]
[1736005603738,3.48473,3611.6,3611.0,3.64]
[1736005604143,3.2078,3611.6,3611.0,3.64]
[1736005604337,0.27693,3611.5,3611.0,3.64]
[1736005604839,3.2078,3611.6,3611.0,3.64]
[1736005605141,3.48473,3611.6,3611.0,3.64]
[1736005605333,3.2078,3611.6,3611.0,3.64]
[1736005605535,3.48473,3611.6,3611.0,3.64]
[1736005605936,3.2078,3611.6,3611.0,3.64]
[1736005606241,0.27696,3611.1,3611.0,3.64]
[1736005606630,0.27696,3611.1,3609.9,4.0515]
[1736005606631,0.27702,3610.4,3609.9,4.0515]
[1736005606837,0.27702,3610.3,3609.9,5.8015]
[1736005607234,0.27702,3610.4,3609.9,5.8015]
[1736005607432,1.233,3610.5,3609.9,5.8015]
[1736005608037,0.27703,3610.2,3609.9,5.8015]
[1736005608340,3.48483,3610.3,3609.9,5.8015]
[1736005608540,0.27703,3610.2,3609.9,5.8015]
[1736005608744,3.48483,3610.3,3609.9,5.8015]
[1736005608936,3.2078,3610.3,3609.9,5.8015]
[1736005609344,1.233,3610.5,3610.0,0.27704]
[1736005609532,1.233,3610.5,3610.1,0.27703]
[1736005609733,4.25310005,3611.1,3610.2,2.65305342]
[1736005609940,4.25310005,3611.1,3610.6,2.65305342]
[1736005610137,4.25310005,3611.1,3610.7,0.27699]
[1736005610341,4.25310005,3611.1,3610.7,6.58399]
[1736005610751,8.52417506,3611.3,3610.8,0.27698]
[1736005610752,3.2078,3611.3,3610.8,0.27698]
[1736005611048,3.2078,3611.3,3610.8,4.08]
[1736005612235,0.27695,3611.2,3610.8,4.08]
[1736005612546,3.2078,3611.3,3610.8,4.08]
[1736005612547,0.27697,3611.0,3610.8,4.08]
[1736005612848,1.91432,3611.6,3610.8,4.08]
[1736005612849,3.48478,3610.9,3610.8,4.08]
[1736005613242,3.2078,3611.3,3610.8,4.08]
[1736005613439,0.27697,3611.0,3610.8,4.08]
[1736005613746,3.2078,3611.3,3610.8,4.08]
[1736005613747,0.27698,3610.9,3610.8,4.08]
[1736005613934,3.48478,3610.9,3610.8,4.08]
[1736005614142,3.2078,3611.3,3610.8,4.08]
[1736005614539,0.27696,3611.2,3610.8,4.08]
[1736005614739,0.27696,3611.1,3610.8,4.08]
[1736005614943,0.27696,3611.2,3610.8,4.08]
[1736005615142,3.2078,3611.3,3610.8,4.08]
[1736005615438,3.48475,3611.3,3610.8,4.08]
[1736005616141,3.2078,3611.3,3610.8,4.08]
[1736005617539,0.27696,3611.2,3610.8,4.08]
[1736005618044,3.48475,3611.3,3610.8,4.08]
[1736005618437,3.2078,3611.3,3610.8,4.08]
[1736005618643,3.48475,3611.3,3610.8,4.08]
[1736005619044,3.2078,3611.3,3610.8,4.08]
[1736005619342,0.27696,3611.2,3610.8,4.08]
[1736005619562,3.2078,3610.9,3610.8,4.08]
[1736005619747,3.2078,3610.9,3609.9,2.071]
[1736005619748,0.27702,3610.3,3609.9,2.071]
[1736005619954,4.4298,3610.5,3609.9,3.861]
[1736005620245,0.27702,3610.4,3609.9,3.861]
[1736005621145,0.27704,3610.0,3609.9,1.79]
[1736005621445,0.27707,3609.7,3609.5,2.1761]
[1736005621648,3.2078,3610.1,3609.5,2.1761]
[1736005621649,0.27708,3609.6,3609.5,3.1561]
[1736005621947,0.27704,3610.0,3609.5,3.1561]
[1736005622145,3.2078,3610.1,3609.5,3.1561]
[1736005622546,3.2078,3610.6,3609.6,3.2078]
[1736005622849,3.2078,3610.6,3609.6,7.74487]
[1736005623148,3.2078,3610.6,3609.6,4.53707]
[1736005623346,3.2078,3610.6,3609.6,4.26]
[1736005623742,3.2078,3610.2,3609.6,4.26]
[1736005623951,0.27707,3609.7,3609.6,4.26]
[1736005624451,3.48486,3609.8,3609.6,4.26]
[1736005624648,3.2078,3609.8,3609.6,4.26]
[1736005624949,1.49906,3609.9,3609.6,4.26]
[1736005625145,1.49905,3609.9,3609.6,4.26]
[1736005625450,0.27704,3610.1,3609.6,4.26]
[1736005625653,1.223,3610.2,3609.6,4.26]
[1736005625847,1.50003,3610.2,3609.7,2.0387]
[1736005626145,1.50003,3610.2,3609.7,6.4287]
[1736005626551,3.2078,3610.6,3609.7,6.4287]
[1736005626743,0.27702,3610.4,3609.7,6.4287]
[1736005627054,0.27701,3610.5,3609.8,0.27706]
[1736005627250,0.27701,3610.5,3609.8,4.06706]
[1736005627650,0.27702,3610.4,3609.8,3.79]
[1736005627951,0.27701,3610.5,3609.8,4.06706]
[1736005628150,0.27701,3610.4,3609.8,3.79]
[1736005628353,0.27701,3610.4,3609.8,4.06706]
[1736005628649,0.27701,3610.4,3609.8,3.79]
[1736005628851,0.27702,3610.3,3609.8,3.79]
[1736005629357,3.2078,3610.6,3609.8,3.79]
[1736005629358,0.27702,3610.4,3609.8,4.06705]
[1736005629552,0.27702,3610.4,3609.8,4.06706]
[1736005629847,3.2078,3610.6,3609.8,3.79]
[1736005630245,0.27704,3610.2,3609.8,3.79]
[1736005630446,3.2078,3610.2,3609.8,3.79]
[1736005630844,3.2078,3610.2,3608.7,8.51110835]
[1736005630845,5.86085342,3610.2,3608.8,3.2078]
[1736005631045,0.27711,3609.2,3608.8,7.2578]
[1736005631245,3.2078,3609.6,3608.8,7.2578]
[1736005631246,1.223,3609.3,3608.8,7.2578]
[1736005631544,0.27712,3609.0,3608.8,7.2578]
[1736005631854,1.5001,3609.3,3608.8,7.2578]
[1736005632648,1.223,3609.3,3608.8,7.2578]
[1736005632955,2.13770177,3609.4,3608.8,7.2578]
[1736005633545,0.27709,3609.5,3608.8,7.2578]
[1736005633747,4.4308,3609.6,3608.8,7.2578]
[1736005633948,0.27713,3608.9,3608.8,4.05]
[1736005634652,6.50013,3608.9,3608.8,4.05]
[1736005634851,0.27718,3608.2,3607.8,2.1589]
[1736005635147,3.2078,3608.4,3607.8,3.3989]
[1736005635347,3.2078,3608.4,3607.8,1.24]
[1736005635548,0.27718,3608.3,3607.8,1.24]
[1736005636149,3.2078,3608.4,3607.8,1.24]
[1736005636658,0.27716,3608.5,3607.8,1.24]
[1736005636859,2.41486177,3608.5,3607.8,1.24]
[1736005637050,2.13770177,3608.5,3607.8,1.24]
[1736005637256,0.27718,3608.4,3607.8,1.24]
[1736005637557,3.48498,3608.4,3607.8,1.24]
[1736005637946,2.13770177,3608.7,3607.8,1.24]
[1736005638162,3.36070177,3608.7,3608.0,0.27719]
[1736005638459,0.27717,3608.4,3608.0,3.88]
[1736005638654,3.36070177,3608.7,3608.0,3.88]
[1736005638957,0.27717,3608.5,3608.0,3.88]
[1736005639251,3.36070177,3608.7,3608.0,3.88]
[1736005639252,1.223,3608.7,3608.0,3.88]
[1736005639449,0.27716,3608.6,3608.0,3.88]
[1736005639856,2.13770177,3609.0,3608.2,2.65305342]
[1736005640058,2.13770177,3609.0,3608.5,0.27716]
[1736005640245,2.13770177,3609.0,3608.5,3.78]
[1736005640552,2.13770177,3609.2,3608.8,3.2078]
[1736005640750,2.13770177,3609.2,3608.9,0.27713]
[1736005640950,2.13770177,3609.2,3608.9,4.13713]
[1736005641150,2.13770177,3609.2,3609.0,2.1972]
[1736005641457,2.13770177,3609.2,3609.0,5.9172]
[1736005641856,2.13770177,3609.2,3609.1,0.27711]
[1736005642050,0.27706,3609.9,3609.1,4.05]
[1736005642251,5.34550177,3610.1,3609.4,2.65305342]
[1736005642560,5.34550177,3610.1,3609.6,0.27707]
[1736005642757,5.34550177,3610.1,3609.6,4.12]
[1736005642964,0.27706,3609.9,3609.6,4.12]
[1736005643153,5.34550177,3610.1,3609.6,4.12]
[1736005643352,5.62254177,3610.1,3609.6,4.12]
[1736005643556,3.2078,3610.1,3609.6,4.12]
[1736005643855,3.2078,3610.1,3609.8,2.65305342]
[1736005644060,0.277,3610.6,3609.9,0.27705]
[1736005644258,0.27701,3610.5,3609.9,4.31705]
[1736005644557,2.41469177,3610.7,3610.1,0.27703]
[1736005644769,3.2078,3610.3,3610.1,1.79]
[1736005644954,0.27703,3610.2,3610.1,1.79]
[1736005645260,3.48482,3610.3,3610.1,1.79]
[1736005645455,0.27703,3610.2,3610.1,1.79]
[1736005645758,0.69263,3610.0,3608.6,2.93020342]
[1736005645963,0.27714,3608.8,3608.6,3.52]
[1736005646261,3.2078,3609.4,3608.6,3.52]
[1736005646262,0.27714,3608.7,3608.6,3.52]
[1736005646663,4.69093,3609.0,3608.6,3.52]
[1736005646960,1.206,3609.0,3608.6,3.52]
[1736005647156,0.27713,3608.9,3608.6,3.52]
[1736005647863,0.27713,3609.0,3608.6,3.52]
[1736005648051,1.206,3609.1,3608.6,3.52]
[1736005648568,0.2771,3609.3,3608.7,0.27714]
[1736005648569,1.206,3609.3,3608.7,0.27714]
[1736005648865,1.206,3609.3,3608.7,3.92714]
[1736005649061,1.206,3609.3,3609.0,0.27712]
[1736005649260,1.206,3609.7,3609.0,3.61]
[1736005649459,1.206,3609.7,3609.1,0.27711]
[1736005649661,0.27708,3609.6,3609.1,4.16]
[1736005649859,1.206,3609.7,3609.1,4.16]
[1736005650265,0.27709,3609.5,3609.1,4.16]
[1736005650458,0.27708,3609.6,3609.1,4.16]
[1736005650759,1.206,3609.6,3609.1,4.16]
[1736005651364,0.27709,3609.5,3609.1,4.16]
[1736005651559,1.206,3609.6,3609.1,4.16]
[1736005651767,1.48308,3609.6,3609.1,4.16]
[1736005651953,1.206,3609.6,3609.1,4.16]
[1736005652156,3.2078,3609.8,3609.3,0.27709]
[1736005652358,3.2078,3609.8,3609.3,3.88]
[1736005652760,3.48486,3609.8,3609.3,3.88]
[1736005652962,3.2078,3609.8,3609.3,3.88]
[1736005653257,4.4138,3609.8,3609.3,3.88]
[1736005653860,4.4138,3609.8,3609.4,2.0969]
[1736005654069,2.13770177,3610.2,3609.4,6.1469]
[1736005654261,2.13770177,3610.2,3609.8,0.27706]
[1736005654465,2.13770177,3610.2,3609.9,0.27705]
[1736005654656,2.13770177,3610.2,3609.9,4.06]
[1736005654964,0.27704,3610.0,3609.9,4.06]
[1736005656361,2.1955,3610.2,3609.9,4.06]
[1736005656557,2.47253,3610.2,3609.9,4.06]
[1736005656759,3.2078,3610.3,3609.9,4.06]
[1736005657066,3.2078,3610.3,3610.0,0.27704]
[1736005657269,3.2078,3610.3,3610.0,4.35]
[1736005657760,3.2078,3610.3,3610.0,4.62704]
[1736005658159,3.2078,3610.3,3610.0,4.35]
[1736005658561,3.2078,3610.3,3610.1,0.27703]
[1736005658761,3.2078,3610.3,3610.1,3.93]
[1736005659363,3.34370177,3610.6,3610.1,3.93]
[1736005659664,2.13770177,3610.6,3610.1,3.93]
[1736005660265,0.27701,3610.5,3610.1,3.93]
[1736005660461,0.27703,3610.2,3610.1,3.93]
[1736005660664,5.86085342,3610.3,3609.4,2.0969]
[1736005660863,0.27708,3609.6,3609.4,0.09]
[1736005661060,1.206,3609.5,3609.4,0.09]
[1736005661470,1.206,3609.7,3609.4,0.09]
[1736005662173,3.34370177,3610.0,3609.6,0.27708]
[1736005662360,3.62075177,3610.0,3609.6,3.92]
[1736005662670,3.34370177,3610.0,3609.6,3.92]
[1736005662862,0.27706,3609.9,3609.6,3.92]
[1736005663062,3.34370177,3610.0,3609.6,3.92]
[1736005663277,1.48305,3610.0,3609.6,3.92]
[1736005663572,2.13770177,3610.2,3609.9,0.27705]
[1736005663759,2.13770177,3610.2,3609.9,4.39]
[1736005664160,0.27704,3610.1,3609.9,4.39]
[1736005664471,2.13770177,3610.2,3609.9,4.39]
[1736005664668,0.27704,3610.1,3609.9,4.39]
[1736005664865,3.2078,3610.1,3609.9,4.39]
[1736005665168,0.27704,3610.0,3609.9,4.39]
[1736005665769,0.27704,3610.0,3609.5,2.0191]
[1736005665969,0.27707,3609.7,3609.5,2.5991]
[1736005666170,0.27707,3609.7,3609.5,0.58]
[1736005666472,1.48308,3609.6,3609.5,0.58]
[1736005666765,5.4099,3609.6,3608.7,3.2078]
[1736005666965,3.48494,3608.8,3608.7,0.34]
[1736005667168,4.69094,3608.8,3608.7,0.34]
[1736005668273,4.4138,3608.8,3608.1,4.31662351]
[1736005668462,0.27716,3608.6,3608.1,7.89662351]
[1736005669074,3.20644608,3608.9,3608.4,2.65305342]
[1736005669267,3.20644608,3608.9,3608.7,0.27714]
[1736005669467,3.20644608,3608.9,3608.7,4.25]
[1736005670275,0.27713,3608.9,3608.7,4.25]
[1736005670574,0.27711,3609.1,3608.7,4.25]
[1736005670768,2.13948177,3609.2,3608.7,4.25]
[1736005670968,2.13948177,3609.2,3608.8,0.27713]
[1736005671171,2.13948177,3609.2,3608.9,1.988]
[1736005671375,2.13948177,3609.2,3608.9,5.628]
[1736005672878,0.2771,3609.3,3608.9,5.628]
[1736005674375,3.33848177,3609.5,3608.9,5.628]
[1736005674671,3.2078,3609.0,3608.9,3.64]
[1736005674874,3.48492,3609.0,3608.9,3.64]
[1736005676176,0.27712,3609.0,3608.9,3.64]
[1736005676876,2.13948177,3609.1,3608.9,3.64]
[1736005677172,2.13948177,3609.1,3608.9,3.91712]
[1736005677368,2.13948177,3609.1,3608.9,3.64]
[1736005678479,2.13948177,3609.1,3609.0,0.27712]
[1736005678682,2.13948177,3609.5,3609.0,4.23]
[1736005678978,0.2771,3609.4,3609.0,4.23]
[1736005679373,2.13948177,3609.5,3609.0,4.23]
[1736005679678,0.2771,3609.4,3609.0,4.23]
[1736005680269,2.13948177,3609.5,3609.0,4.23]
[1736005680576,0.27711,3609.2,3609.0,4.23]
[1736005680978,0.27711,3609.1,3609.0,4.23]
[1736005681372,0.27711,3609.1,3608.0,4.31662351]
[1736005681373,0.27717,3608.4,3608.0,4.31662351]
[1736005681571,1.199,3608.4,3608.0,6.02662351]
[1736005681875,0.27719,3608.1,3608.0,6.02662351]
[1736005682882,0.27719,3608.1,3608.0,1.71]
[1736005683379,0.27723,3607.6,3607.4,3.2078]
[1736005683581,3.2078,3608.2,3607.4,7.5578]
[1736005683768,0.27724,3607.5,3607.4,4.35]
[1736005684875,2.34194,3607.5,3607.4,4.35]
[1736005685072,2.34194,3607.5,3606.5,4.31662351]
[1736005685073,3.67912,3607.4,3606.5,4.31662351]
[1736005685274,3.48511,3606.6,3606.5,4.31662351]
[1736005685478,4.68411,3606.6,3606.5,4.31662351]
[1736005685675,9.68411,3606.6,3606.5,4.31662351]
[1736005686277,9.4068,3606.6,3605.6,2.0315]
[1736005686481,0.27737,3605.8,3605.6,2.45]
[1736005686785,3.48516,3606.0,3605.6,2.45]
[1736005686989,0.27736,3605.9,3605.6,2.45]
[1736005687583,3.2078,3606.0,3605.6,2.45]
[1736005688081,2.13778477,3606.5,3605.6,5.10305342]
[1736005688387,3.2078,3606.3,3605.6,2.45]
[1736005688584,0.27737,3605.8,3605.6,2.45]
[1736005688785,4.4078,3605.9,3605.6,2.45]
[1736005689282,0.27737,3605.8,3605.6,2.45]
[1736005689586,0.27738,3605.7,3605.6,2.45]
[1736005689777,3.48517,3605.8,3605.6,2.45]
[1736005690084,0.27738,3605.7,3605.6,2.45]
[1736005690781,3.2078,3605.8,3605.6,2.45]
[1736005690985,3.48517,3605.8,3605.6,2.45]
[1736005691185,3.2078,3605.8,3605.6,2.45]
[1736005691387,3.2078,3606.3,3605.6,2.45]
[1736005691596,3.2078,3606.7,3606.0,2.65305342]
[1736005691775,2.13778477,3606.9,3606.3,0.27732]
[1736005691981,2.13778477,3606.9,3606.3,3.38]
[1736005692985,0.27728,3606.9,3606.3,3.38]
[1736005693387,1.2,3607.0,3606.3,3.38]
[1736005693886,0.27729,3606.9,3606.3,3.38]
[1736005694886,1.2,3607.0,3606.3,3.38]
[1736005695679,1.47728,3607.0,3606.3,3.38]
[1736005695885,0.2773,3606.7,3606.3,3.38]
[1736005696089,0.27728,3607.0,3606.3,3.38]
[1736005696289,0.27732,3606.4,3606.3,3.38]
[1736005696987,3.2078,3606.7,3605.2,2.93046342]
[1736005697191,0.27735,3606.0,3605.2,7.28046342]
[1736005697397,1.47735,3606.0,3605.2,7.28046342]
[1736005697893,1.2,3606.0,3605.2,7.00305342]
[1736005698288,1.47735,3606.0,3605.2,7.28046342]
[1736005698597,3.2078,3605.8,3605.2,4.35]
[1736005698788,3.2078,3605.4,3605.2,4.35]
[1736005699098,0.27738,3605.7,3605.2,4.35]
[1736005699291,0.2774,3605.5,3605.2,4.35]
[1736005699486,3.2078,3605.4,3605.2,4.35]
[1736005700088,3.4852,3605.4,3605.2,4.35]
[1736005700288,3.2078,3605.4,3605.2,4.35]
[1736005700591,0.27739,3605.6,3605.2,4.35]
[1736005700795,4.4078,3606.0,3605.2,4.35]
[1736005700991,3.2078,3605.6,3605.2,4.35]
[1736005701195,0.2774,3605.4,3605.2,4.35]
[1736005701597,3.2078,3605.6,3605.2,4.35]
[1736005701895,0.27741,3605.4,3605.2,4.35]
[1736005702292,2.93046342,3605.3,3605.2,4.35]
[1736005702490,2.93046342,3605.3,3603.7,3.2078]
[1736005702491,4.85325342,3605.3,3603.7,3.2078]
[1736005702684,0.2775,3604.2,3603.7,7.3778]
[1736005702889,1.188,3604.2,3603.7,7.3778]
[1736005703289,4.3958,3604.2,3603.7,4.17]
[1736005703485,3.2078,3604.2,3603.7,4.17]
[1736005703691,1.188,3604.4,3603.7,4.17]
[1736005703893,1.188,3604.4,3604.0,0.2775]
[1736005704091,4.3958,3604.7,3604.2,0.27749]
[1736005704291,4.3958,3604.7,3604.2,4.2]
[1736005704795,3.2078,3604.3,3604.2,4.2]
[1736005705000,3.48528,3604.3,3604.2,4.2]
[1736005706195,4.3958,3604.7,3604.2,4.2]
[1736005706395,1.188,3604.6,3604.2,4.2]
[1736005706903,0.27748,3604.4,3604.2,4.2]
[1736005707091,3.48528,3604.3,3604.2,4.2]
[1736005707488,3.48528,3604.3,3603.7,3.2078]
[1736005707489,0.27752,3603.8,3603.7,3.2078]
[1736005707696,1.46552,3603.8,3603.7,6.7978]
[1736005707896,4.67332,3603.8,3603.7,3.59]
[1736005709696,4.3958,3603.8,3603.7,3.59]
[1736005710005,4.67332,3603.8,3603.7,3.59]
[1736005711101,0.69385,3603.6,3602.7,2.054]
[1736005711300,0.69385,3603.6,3602.7,5.954]
[1736005711301,3.2078,3603.0,3602.7,5.954]
[1736005711489,1.189,3602.9,3602.7,5.954]
[1736005711894,3.2078,3603.6,3602.8,0.27759]
[1736005712095,1.189,3603.5,3602.8,3.96]
[1736005712804,3.2078,3603.2,3602.8,3.96]
[1736005713003,0.27759,3602.9,3602.8,3.96]
[1736005714205,0.27758,3603.1,3602.8,3.96]
[1736005714403,0.27759,3603.0,3602.8,3.96]
[1736005714612,0.27759,3602.9,3602.8,3.96]
[1736005715908,3.2078,3603.2,3602.8,3.96]
[1736005716106,2.93064342,3602.9,3602.8,3.96]
[1736005716502,7.93064342,3602.9,3602.8,3.96]
[1736005716705,2.986,3602.8,3601.4,9.3908]
[1736005716902,0.69397,3603.0,3601.4,11.1615]
[1736005716903,3.2078,3601.9,3601.4,11.1615]
[1736005717110,1.189,3601.8,3601.4,5.8454]
[1736005717306,0.2777,3601.6,3601.4,3.8]
[1736005717506,1.189,3601.8,3601.4,3.8]
[1736005718207,0.27773,3601.1,3600.6,5.4]
[1736005718411,1.189,3601.0,3600.6,1.8]
[1736005719210,0.27775,3600.9,3600.6,1.8]
[1736005719405,1.189,3601.0,3600.6,1.8]
[1736005719604,0.27776,3600.7,3600.6,1.8]
[1736005719908,0.27781,3600.1,3599.3,3.2078]
[1736005720108,0.27782,3599.9,3599.8,4.33]
[1736005720306,1.189,3599.9,3598.9,3.2078]
[1736005720516,0.27786,3599.5,3598.9,7.4478]
[1736005720711,0.27787,3599.3,3598.9,7.4478]
[1736005720914,9.12474342,3599.0,3598.9,4.24]
[1736005721207,9.12474342,3599.0,3598.4,3.2078]
[1736005721208,0.2779,3598.9,3598.4,3.2078]
[1736005721418,1.189,3599.0,3598.4,3.2278]
[1736005721714,1.24,3599.5,3598.8,3.2078]
[1736005721917,1.24,3599.5,3598.8,1.94]
[1736005722106,4.72565,3599.5,3598.8,1.94]
[1736005722409,2.65305342,3599.4,3598.8,1.94]
[1736005722611,3.2078,3599.1,3598.8,1.94]
[1736005722812,3.2078,3599.5,3598.8,1.94]
[1736005723110,1.24,3599.4,3598.8,1.94]
[1736005724212,3.2078,3599.9,3599.1,3.2078]
[1736005724413,1.24,3599.8,3599.1,4.01568]
[1736005724716,3.2078,3599.9,3599.1,0.53]
[1736005724908,1.24,3599.8,3599.1,0.53]
[1736005725109,0.27788,3599.2,3599.1,0.53]
[1736005725307,0.27789,3599.1,3598.2,0.92467746]
[1736005725510,0.27791,3598.8,3598.2,1.27467746]
[1736005725814,0.2779,3598.9,3598.2,1.27467746]
[1736005726021,4.4478,3599.0,3598.2,1.27467746]
[1736005726716,2.986,3599.6,3598.5,3.2078]
[1736005726717,1.24,3599.1,3598.5,3.2078]
[1736005727010,1.24,3599.1,3598.5,7.1878]
[1736005727211,5.86085342,3598.9,3598.5,3.98]
[1736005727607,3.2078,3598.9,3598.5,3.98]
[1736005727818,1.24,3598.8,3598.5,3.98]
[1736005728616,3.2078,3598.9,3598.5,3.98]
[1736005728821,1.24,3598.7,3598.5,3.98]
[1736005729315,3.2078,3598.9,3598.7,0.27791]
[1736005729511,1.24,3599.2,3598.7,0.24]
[1736005729707,1.24,3599.2,3598.7,0.51791]
[1736005729913,1.24,3599.2,3598.7,0.24]
[1736005730110,1.24,3599.2,3598.7,2.52661]
[1736005730306,1.24,3599.1,3598.7,0.24]
[1736005730607,2.65305342,3598.9,3598.7,0.24]
[1736005731209,1.24,3598.8,3598.7,0.24]
[1736005731618,2.93092342,3599.3,3598.7,0.24]
[1736005731812,1.24,3599.0,3598.7,0.24]
[1736005732419,2.65305342,3598.9,3598.7,0.24]
[1736005732616,0.27791,3598.8,3598.7,0.24]
[1736005732914,1.24,3598.8,3598.7,0.24]
[1736005733916,1.241,3598.8,3598.7,0.24]
[1736005734117,1.23747984,3598.8,3598.7,0.24]
[1736005735514,45.8,3598.8,3598.4,3.2078]
[1736005735715,2.93099342,3598.5,3598.4,3.2478]
[1736005736017,3.89405342,3598.5,3598.4,3.2478]
[1736005736621,1.241,3598.5,3598.4,3.2478]
[1736005736813,3.89405342,3598.5,3598.4,3.2478]
[1736005737221,9.17198342,3598.5,3598.4,3.2478]
[1736005737413,4.17198342,3598.5,3598.4,3.2478]
[1736005738117,1.241,3598.5,3598.4,0.04]
[1736005738319,1.51893,3598.5,3598.4,0.04]
[1736005738708,1.241,3598.5,3598.4,3.2478]
[1736005739108,2.986,3599.2,3598.4,3.2478]
[1736005739308,2.986,3599.2,3599.0,3.2078]
[1736005739521,1.241,3599.3,3599.0,5.4578]
[1736005740019,1.241,3599.3,3599.1,0.27788]
[1736005740217,1.241,3599.3,3599.1,3.6]
[1736005740417,7.294,3599.6,3599.1,3.6]
[1736005740624,1.241,3599.5,3599.4,3.2078]
[1736005740918,1.241,3599.5,3599.4,3.8178]
[1736005741512,1.241,3599.5,3599.4,4.09566]
[1736005742315,2.93080342,3600.9,3600.0,0.27781]
[1736005742514,0.69417,3602.0,3600.4,3.2078]
[1736005742515,1.241,3600.8,3600.4,3.2078]
[1736005742710,1.241,3601.0,3600.5,2.205]
[1736005742910,1.241,3601.0,3600.9,3.2078]
[1736005743109,1.241,3601.0,3600.9,3.8578]
[1736005743321,1.241,3601.5,3600.9,3.8578]
[1736005743519,1.241,3601.5,3601.3,3.2078]
[1736005743719,1.241,3601.5,3601.3,0.23]
[1736005743920,0.27771,3601.4,3601.3,0.23]
[1736005744315,1.241,3601.5,3600.6,2.0446]
[1736005744515,1.241,3601.5,3601.2,3.2078]
[1736005744717,2.65305342,3601.3,3601.2,0.65]
[1736005745019,2.65305342,3601.3,3600.5,2.205]
[1736005745320,0.27773,3601.1,3600.5,2.625]
[1736005745623,2.65305342,3601.3,3600.5,2.625]
[1736005745817,2.65305342,3600.9,3600.5,0.42]
[1736005746013,2.65305342,3600.9,3600.2,3.2078]
[1736005746219,2.65305342,3600.9,3600.2,6.0478]
[1736005746421,2.65305342,3600.9,3600.3,2.2031]
[1736005746717,3.48553,3601.1,3600.3,4.7631]
[1736005746718,3.2078,3601.1,3600.3,4.7631]
[1736005746924,2.65305342,3601.3,3600.6,3.2078]
[1736005747126,3.2078,3601.1,3600.6,0.63]
[1736005747423,0.27776,3600.7,3600.6,0.63]
[1736005747628,2.65305342,3600.9,3599.9,3.2078]
[1736005747817,2.65305342,3600.9,3600.3,3.2078]
[1736005748022,42.041,3601.0,3600.3,7.14559]
[1736005748328,42.31874,3601.0,3600.3,6.8678]
[1736005748629,0.27775,3600.9,3600.3,3.66]
[1736005748824,42.041,3601.0,3600.4,3.2078]
[1736005749133,1.241,3601.0,3600.4,7.0978]
[1736005751021,1.241,3601.0,3600.4,3.89]
[1736005751022,3.2078,3600.8,3600.4,3.89]
[1736005751427,3.48555,3600.8,3600.4,3.89]
[1736005751638,3.2078,3600.8,3600.4,3.89]
[1736005751934,1.241,3601.0,3600.4,7.0978]
[1736005752132,1.51874,3601.0,3600.4,7.0978]
[1736005752729,0.27777,3600.7,3600.4,7.0978]
[1736005752930,0.27776,3600.8,3600.4,3.89]
[1736005753233,1.241,3601.0,3600.4,3.89]
[1736005753424,0.27775,3600.9,3600.4,3.89]
[1736005753828,1.51874,3601.0,3600.4,3.89]
[1736005754137,1.241,3601.0,3600.5,3.2078]
[1736005754329,1.241,3601.0,3600.5,7.0778]
[1736005754530,1.51874,3601.0,3600.5,7.0778]
[1736005754734,0.27774,3600.9,3600.5,7.0778]
[1736005754929,1.241,3601.0,3600.5,7.0778]
[1736005755830,1.241,3601.0,3600.5,7.35558]
[1736005756037,1.241,3601.0,3600.5,7.0778]
[1736005756437,1.241,3601.0,3600.5,7.35557]
[1736005756636,3.2078,3601.1,3600.5,7.0778]
[1736005756937,1.262,3601.0,3600.5,7.0778]